fUST/lending_fUST_20250727
["ID","MTS","AMOUNT","RATE_DAILY","PERIOD"]
[375179410,1753578663877,-460.0,0.00021375,2]
[375179411,1753578663887,-1202.75,0.00021375,2]
[375179412,1753578663898,-2056.17,0.00021377,2]
[375179413,1753578663907,-619.47,0.00021377,2]
[375179414,1753578663918,-911.48,0.00021377,2]
[375179415,1753578663927,-765.98,0.00021377,2]
[375179416,1753578663936,-1129.56,0.00021377,2]
[375179417,1753578663946,-460.0,0.00021377,2]
[375179418,1753578663956,-853.03,0.00021377,2]
[375179419,1753578663965,-460.0,0.00021426,2]
[375179420,1753578663975,-460.0,0.00021426,2]
[375179421,1753578663984,-1059.09,0.00021426,2]
[375179422,1753578663994,-1353.43,0.00021434,2]
[375179423,1753578664003,-460.0,0.00021434,2]
[375179424,1753578664013,-1539.81,0.00021434,2]
[375179425,1753578664024,-460.0,0.00021434,2]
[375179426,1753578664034,-1181.02,0.00021434,2]
[375179427,1753578664043,-460.0,0.00021434,2]
[375179428,1753578664052,-460.0,0.00021434,2]
[375179429,1753578664062,-490.0,0.00021434,2]
[375179430,1753578664072,-460.0,0.00021435,2]
[375179431,1753578664082,-460.0,0.00021435,2]
[375179432,1753578664092,-460.0,0.00021435,2]
[375179433,1753578664102,-460.0,0.00021435,2]
[375179434,1753578664112,-460.0,0.00021435,2]
[375179435,1753578664121,-460.0,0.00021435,2]
[375179436,1753578664130,-540.67,0.00021435,2]
[375179437,1753578664140,-3688.06,0.00021435,2]
[375179438,1753578664150,-460.0,0.00021435,2]
[375179439,1753578664160,-460.0,0.00021435,2]
[375179440,1753578664170,-460.0,0.00021435,2]
[375179441,1753578664180,-460.0,0.00021435,2]
[375179442,1753578664189,-1423.65,0.00021435,2]
[375179443,1753578664199,-460.0,0.00021435,2]
[375179444,1753578664208,-460.0,0.00021435,2]
[375179445,1753578664218,-460.0,0.00021435,2]
[375179446,1753578664227,-460.0,0.00021435,2]
[375179447,1753578664237,-460.0,0.00021437,2]
[375179448,1753578664247,-460.0,0.00021437,2]
[375179449,1753578664257,-460.0,0.00021437,2]
[375179450,1753578664266,-150.16,0.00021437,2]
[375179451,1753578664276,-2500.0,0.00021464,2]
[375179452,1753578664286,-483.43247783,0.00021464,2]
[375179453,1753578664295,-707.97,0.00021535,2]
[375179454,1753578664305,-779.31,0.00021535,2]
[375179455,1753578664315,-460.0,0.00021535,2]
[375179456,1753578664325,-460.0,0.00021535,2]
[375179457,1753578664335,-1538.38,0.00021535,2]
[375179458,1753578664345,-460.0,0.00021535,2]
[375179459,1753578664354,-460.0,0.00021536,2]
[375179460,1753578664364,-221.56,0.00021536,2]
[375179461,1753578664373,-460.0,0.00021536,2]
[375179462,1753578664383,-460.0,0.00021536,2]
[375179463,1753578664393,-488.69,0.00021536,2]
[375179464,1753578664402,-460.0,0.00021536,2]
[375179465,1753578664412,-151.0,0.00021536,2]
[375179466,1753578664421,-460.0,0.00021536,2]
[375179467,1753578664431,-152.85,0.00021537,2]
[375179468,1753578664441,-460.0,0.00021539,2]
[375179469,1753578664450,-460.0,0.0002155,2]
[375179470,1753578664460,-4015.85201903,0.00021555,5]
[375179471,1753578664469,-151.0,0.0002159,2]
[375179472,1753578664479,-178.52,0.00021649,2]
[375179473,1753578664489,-1202.75,0.00021649,2]
[375179474,1753578664499,-2056.17,0.00021651,2]
[375179475,1753578664508,-619.47,0.00021651,2]
[375179476,1753578664518,-911.48,0.00021651,2]
[375179477,1753578664528,-765.98,0.00021651,2]
[375179478,1753578664538,-1129.56,0.00021651,2]
[375179479,1753578664548,-460.0,0.00021651,2]
[375179480,1753578664558,-853.03,0.00021651,2]
[375179481,1753578664568,-596.59,0.000217,2]
[375179482,1753578664577,-538.76,0.000217,2]
[375179483,1753578664587,-1059.09,0.000217,2]
[375179484,1753578664597,-1353.43,0.00021708,2]
[375179485,1753578664612,-460.0,0.00021708,2]
[375179486,1753578664622,-1539.81,0.00021708,2]
[375179487,1753578664635,-460.0,0.00021708,2]
[375179488,1753578664707,-1181.02,0.00021708,2]
[375179489,1753578664717,-460.0,0.00021708,2]
[375179490,1753578664727,-460.0,0.00021708,2]
[375179491,1753578664737,-490.0,0.00021708,2]
[375179492,1753578664746,-460.0,0.00021709,2]
[375179493,1753578664756,-460.0,0.00021709,2]
[375179494,1753578664765,-424.07,0.00021709,2]
[375179495,1753578664775,-481.33,0.00021709,2]
[375179496,1753578664785,-460.0,0.00021709,2]
[375179497,1753578664795,-460.0,0.00021709,2]
[375179498,1753578664805,-540.67,0.00021709,2]
[375179499,1753578664814,-3688.06,0.00021709,2]
[375179500,1753578664824,-476.40035774,0.00021709,2]
[375179501,1753578664834,-460.0,0.00021709,2]
[375179502,1753578664844,-460.0,0.00021709,2]
[375179503,1753578664853,-460.0,0.00021709,2]
[375179504,1753578664862,-1423.65,0.00021709,2]
[375179505,1753578664872,-460.0,0.00021709,2]
[375179506,1753578664882,-460.0,0.00021709,2]
[375179507,1753578664891,-460.0,0.00021709,2]
[375179508,1753578664901,-409.85,0.00021711,2]
[375179509,1753578664910,-460.0,0.00021711,2]
[375179510,1753578664919,-460.0,0.00021711,2]
[375179511,1753578664929,-4015.85201903,0.00021762,5]
[375179512,1753578664939,-1000.0,0.00021764,2]
[375179513,1753578664948,-151.0,0.000218,2]
[375179514,1753578664957,-707.97,0.00021809,2]
[375179515,1753578664967,-779.31,0.00021809,2]
[375179516,1753578664979,-460.0,0.00021809,2]
[375179517,1753578664988,-460.0,0.00021809,2]
[375179518,1753578664998,-1538.38,0.00021809,2]
[375179519,1753578665008,-460.0,0.00021809,2]
[375179520,1753578665017,-182.21,0.0002181,2]
[375179521,1753578665026,-460.0,0.0002181,2]
[375179522,1753578665036,-460.0,0.0002181,2]
[375179523,1753578665045,-488.69,0.0002181,2]
[375179524,1753578665054,-460.0,0.0002181,2]
[375179525,1753578665064,-460.0,0.0002181,2]
[375179526,1753578665074,-352.29,0.00021813,2]
[375179527,1753578665084,-460.0,0.00021824,2]
[375179528,1753578665093,-185.88,0.00021849,2]
[375179529,1753578665103,-150.0,0.00021851,2]
[375179530,1753578665113,-500.0,0.00021917,2]
[375179531,1753578665123,-151.0,0.00021918,2]
[375179532,1753578665132,-150.0,0.00021918,2]
[375179533,1753578665142,-1202.75,0.00021923,2]
[375179534,1753578665151,-2056.17,0.00021925,2]
[375179535,1753578665161,-619.47,0.00021925,2]
[375179536,1753578665176,-911.48,0.00021925,2]
[375179537,1753578665196,-765.98,0.00021925,2]
[375179538,1753578665213,-1129.56,0.00021925,2]
[375179539,1753578665232,-460.0,0.00021925,2]
[375179540,1753578665252,-853.03,0.00021925,2]
[375179541,1753578665271,-4015.85201903,0.00021969,6]
[375179542,1753578665288,-1059.09,0.00021974,2]
[375179543,1753578665308,-1353.43,0.00021982,2]
[375179544,1753578665321,-460.0,0.00021982,2]
[375179545,1753578665338,-1539.81,0.00021982,2]
[375179546,1753578665359,-460.0,0.00021982,2]
[375179547,1753578665377,-1181.02,0.00021982,2]
[375179548,1753578665390,-460.0,0.00021982,2]
[375179549,1753578665407,-460.0,0.00021982,2]
[375179550,1753578665422,-490.0,0.00021982,2]
[375179551,1753578665438,-460.0,0.00021983,2]
[375179552,1753578665451,-460.0,0.00021983,2]
[375179553,1753578665466,-460.0,0.00021983,2]
[375179554,1753578665480,-460.0,0.00021983,2]
[375179555,1753578665494,-540.67,0.00021983,2]
[375179556,1753578665508,-3688.06,0.00021983,2]
[375179557,1753578665525,-460.0,0.00021983,2]
[375179558,1753578665540,-460.0,0.00021983,2]
[375179559,1753578665554,-440.96,0.00021983,2]
[375179560,1753578665567,-1423.65,0.00021983,2]
[375179561,1753578665582,-460.0,0.00021983,2]
[375179562,1753578665595,-460.0,0.00021983,2]
[375179563,1753578665609,-460.0,0.00021983,2]
[375179564,1753578665622,-460.0,0.00021985,2]
[375179565,1753578665639,-460.0,0.00021985,2]
[375179566,1753578665654,-2096.68,0.00022,7]
[375179567,1753578665668,-874.49,0.00022,7]
[375179568,1753578665681,-2265.62,0.00022,7]
[375179569,1753578665695,-21072.81,0.00022,2]
[375179570,1753578665710,-151.0,0.00022,7]
[375179571,1753578665724,-151.0,0.00022,7]
[375179572,1753578665739,-151.0,0.00022,7]
[375179573,1753578665753,-151.0,0.00022,7]
[375179574,1753578665768,-151.0,0.00022,7]
[375179575,1753578665782,-151.0,0.00022,7]
[375179576,1753578665796,-151.0,0.00022,7]
[375179577,1753578665810,-158.0,0.00022,2]
[375179578,1753578665824,-3000.0,0.00022012,2]
[375179579,1753578665838,-707.97,0.00022083,2]
[375179580,1753578665852,-779.31,0.00022083,2]
[375179581,1753578665868,-460.0,0.00022083,2]
[375179582,1753578665884,-460.0,0.00022083,2]
[375179583,1753578665900,-1538.38,0.00022083,2]
[375179584,1753578665991,-151.0,0.00022083,7]
[375179585,1753578666002,-460.0,0.00022083,2]
[375179586,1753578666012,-460.0,0.00022084,2]
[375179587,1753578666022,-460.0,0.00022084,2]
[375179588,1753578666031,-488.69,0.00022084,2]
[375179589,1753578666041,-460.0,0.00022084,2]
[375179590,1753578666052,-460.0,0.00022084,2]
[375179591,1753578666062,-460.0,0.00022098,2]
[375179592,1753578666071,-4015.85201903,0.00022176,6]
[375179593,1753578666082,-1202.75,0.00022197,2]
[375179594,1753578666092,-2056.17,0.00022199,2]
[375179595,1753578666102,-619.47,0.00022199,2]
[375179596,1753578666111,-911.48,0.00022199,2]
[375179597,1753578666121,-765.98,0.00022199,2]
[375179598,1753578666130,-1129.56,0.00022199,2]
[375179599,1753578666139,-460.0,0.00022199,2]
[375179600,1753578666148,-853.03,0.00022199,2]
[375179601,1753578666157,-1059.09,0.00022248,2]
[375179602,1753578666166,-1353.43,0.00022256,2]
[375179603,1753578666176,-460.0,0.00022256,2]
[375179604,1753578666185,-1539.81,0.00022256,2]
[375179605,1753578666195,-460.0,0.00022256,2]
[375179606,1753578666205,-1181.02,0.00022256,2]
[375179607,1753578666214,-460.0,0.00022256,2]
[375179608,1753578666224,-460.0,0.00022256,2]
[375179609,1753578666233,-490.0,0.00022256,2]
[375179610,1753578666242,-359.86,0.00022257,2]
[375179611,1753578666252,-401.39,0.00022257,2]
[375179612,1753578666262,-460.0,0.00022257,2]
[375179613,1753578666271,-460.0,0.00022257,2]
[375179614,1753578666281,-540.67,0.00022257,2]
[375179615,1753578666290,-3688.06,0.00022257,2]
[375179616,1753578666300,-460.0,0.00022257,2]
[375179617,1753578666309,-460.0,0.00022257,2]
[375179618,1753578666319,-1423.65,0.00022257,2]
[375179619,1753578666328,-460.0,0.00022257,2]
[375179620,1753578666337,-460.0,0.00022257,2]
[375179621,1753578666346,-460.0,0.00022257,2]
[375179622,1753578666355,-225.96,0.00022259,2]
[375179623,1753578666365,-460.0,0.00022259,2]
[375179624,1753578666375,-500.0,0.00022312,2]
[375179625,1753578666384,-150.18147814,0.00022329,2]
[375179626,1753578666394,-707.97,0.00022357,2]
[375179627,1753578666403,-779.31,0.00022357,2]
[375179628,1753578666412,-460.0,0.00022357,2]
[375179629,1753578666422,-460.0,0.00022357,2]
[375179630,1753578666431,-1538.38,0.00022357,2]
[375179631,1753578666441,-460.0,0.00022357,2]
[375179632,1753578666450,-460.0,0.00022358,2]
[375179633,1753578666459,-460.0,0.00022358,2]
[375179634,1753578666468,-488.69,0.00022358,2]
[375179635,1753578666478,-460.0,0.00022358,2]
[375179636,1753578666488,-460.0,0.00022358,2]
[375179637,1753578666498,-460.0,0.00022372,2]
[375179638,1753578666507,-4015.85201903,0.00022383,7]
[375179639,1753578666516,-6872.50620053,0.00022431,2]
[375179640,1753578666526,-300.0,0.00022466,2]
[375179641,1753578666535,-1202.75,0.00022471,2]
[375179642,1753578666546,-2056.17,0.00022473,2]
[375179643,1753578666569,-619.47,0.00022473,2]
[375179644,1753578666590,-911.48,0.00022473,2]
[375179645,1753578666600,-765.98,0.00022473,2]
[375179646,1753578666609,-1129.56,0.00022473,2]
[375179647,1753578666618,-460.0,0.00022473,2]
[375179648,1753578666630,-853.03,0.00022473,2]
[375179649,1753578666640,-1059.09,0.00022522,2]
[375179650,1753578666650,-1353.43,0.0002253,2]
[375179651,1753578666659,-460.0,0.0002253,2]
[375179652,1753578666669,-1539.81,0.0002253,2]
[375179653,1753578666680,-460.0,0.0002253,2]
[375179654,1753578666689,-1181.02,0.0002253,2]
[375179655,1753578666699,-460.0,0.0002253,2]
[375179656,1753578666710,-460.0,0.0002253,2]
[375179657,1753578666720,-490.0,0.0002253,2]
[375179658,1753578666731,-201.49,0.00022531,2]
[375179659,1753578666742,-460.0,0.00022531,2]
[375179660,1753578666753,-540.67,0.00022531,2]
[375179661,1753578666763,-3688.06,0.00022531,2]
[375179662,1753578666774,-460.0,0.00022531,2]
[375179663,1753578666783,-460.0,0.00022531,2]
[375179664,1753578666795,-1423.65,0.00022531,2]
[375179665,1753578666805,-358.23,0.00022531,2]
[375179666,1753578666814,-460.0,0.00022531,2]
[375179667,1753578666823,-460.0,0.00022531,2]
[375179668,1753578666834,-460.0,0.00022533,2]
[375179669,1753578666843,-3500.0,0.0002256,2]
[375179670,1753578666853,-4015.85201903,0.0002259,7]
[375179671,1753578666862,-707.97,0.00022631,2]
[375179672,1753578666871,-779.31,0.00022631,2]
[375179673,1753578666881,-460.0,0.00022631,2]
[375179674,1753578666891,-460.0,0.00022631,2]
[375179675,1753578666900,-1538.38,0.00022631,2]
[375179676,1753578666910,-460.0,0.00022631,2]
[375179677,1753578666919,-460.0,0.00022632,2]
[375179678,1753578666928,-460.0,0.00022632,2]
[375179679,1753578666938,-488.69,0.00022632,2]
[375179680,1753578666948,-460.0,0.00022632,2]
[375179681,1753578666957,-460.0,0.00022632,2]
[375179682,1753578666966,-460.0,0.00022646,2]
[375179683,1753578667030,-151.0,0.000227,9]
[375179684,1753578667039,-1202.75,0.00022745,2]
[375179685,1753578667049,-2056.17,0.00022747,2]
[375179686,1753578667059,-619.47,0.00022747,2]
[375179687,1753578667068,-911.48,0.00022747,2]
[375179688,1753578667077,-765.98,0.00022747,2]
[375179689,1753578667086,-1129.56,0.00022747,2]
[375179690,1753578667096,-274.18,0.00022747,2]
[375179691,1753578667106,-853.03,0.00022747,2]
[375179692,1753578667116,-154.9,0.0002276,2]
[375179693,1753578667128,-587.0,0.0002277,2]
[375179694,1753578667138,-6872.50620048,0.00022782,2]
[375179695,1753578667148,-1059.09,0.00022796,2]
[375179696,1753578667160,-4015.85201903,0.00022797,7]
[375179697,1753578667171,-856.77,0.000228,2]
[375179698,1753578667181,-1353.43,0.00022804,2]
[375179699,1753578667191,-460.0,0.00022804,2]
[375179700,1753578667200,-1539.81,0.00022804,2]
[375179701,1753578667209,-252.9,0.00022804,2]
[375179702,1753578667218,-1181.02,0.00022804,2]
[375179703,1753578667226,-460.0,0.00022804,2]
[375179704,1753578667234,-401.47,0.00022804,2]
[375179705,1753578667243,-490.0,0.00022804,2]
[375179706,1753578667252,-460.0,0.00022805,2]
[375179707,1753578667262,-540.67,0.00022805,2]
[375179708,1753578667273,-3688.06,0.00022805,2]
[375179709,1753578667283,-460.0,0.00022805,2]
[375179710,1753578667292,-460.0,0.00022805,2]
[375179711,1753578667302,-1423.65,0.00022805,2]
[375179712,1753578667311,-597.25,0.00022805,2]
[375179713,1753578667321,-350.84,0.00022805,2]
[375179714,1753578667331,-460.0,0.00022807,2]
[375179715,1753578667341,-150.0,0.000229,2]
[375179716,1753578667351,-151.0,0.00022905,7]
[375179717,1753578667360,-707.97,0.00022905,2]
[375179718,1753578667370,-779.31,0.00022905,2]
[375179719,1753578667379,-460.0,0.00022905,2]
[375179720,1753578667389,-460.0,0.00022905,2]
[375179721,1753578667398,-1538.38,0.00022905,2]
[375179722,1753578667408,-460.0,0.00022905,2]
[375179723,1753578667418,-544.63,0.00022906,2]
[375179724,1753578667427,-460.0,0.00022906,2]
[375179725,1753578667437,-488.69,0.00022906,2]
[375179726,1753578667447,-442.41,0.00022906,2]
[375179727,1753578667457,-460.0,0.00022906,2]
[375179728,1753578667466,-522.74,0.0002292,2]
[375179729,1753578667476,-557.88,0.00022935,4]
[375179730,1753578667485,-526.20897225,0.00023,3]
[375179731,1753578667495,-160.0,0.00023,2]
[375179732,1753578667505,-160.0,0.00023,3]
[375179733,1753578667514,-4015.85201903,0.00023003,8]
[375179734,1753578667526,-154.287826,0.00023005,2]
[375179735,1753578667535,-158.0,0.00023014,7]
[375179736,1753578667545,-151.0,0.00023019,7]
[375179737,1753578667554,-1202.75,0.00023019,2]
[375179738,1753578667564,-2056.17,0.00023021,2]
[375179739,1753578667574,-619.47,0.00023021,2]
[375179740,1753578667584,-911.48,0.00023021,2]
[375179741,1753578667593,-765.98,0.00023021,2]
[375179742,1753578667603,-1129.56,0.00023021,2]
[375179743,1753578667611,-853.03,0.00023021,2]
[375179744,1753578667619,-151.0,0.00023022,7]
[375179745,1753578667630,-25000.0,0.00023022,2]
[375179746,1753578667640,-151.0,0.00023022,2]
[375179747,1753578667650,-10760.39364183,0.00023022,2]
[375179748,1753578667660,-500.0,0.00023022,2]
[375179749,1753578667669,-151.0,0.00023022,2]
[375179750,1753578667679,-151.0,0.00023022,2]
[375179751,1753578667688,-151.0,0.00023022,2]
[375179752,1753578667698,-151.0,0.00023022,2]
[375179753,1753578667707,-151.0,0.00023022,2]
[375179754,1753578667723,-151.0,0.00023022,2]
[375179755,1753578667734,-151.0,0.00023022,2]
[375179756,1753578667743,-151.0,0.00023022,2]
[375179757,1753578667752,-151.0,0.00023022,2]
[375179758,1753578667762,-151.0,0.00023022,2]
[375179759,1753578667772,-290.09635043,0.00023022,2]
[375179760,1753578667781,-151.0,0.00023022,2]
[375179761,1753578667791,-151.0,0.00023022,2]
[375179762,1753578667800,-151.0,0.00023022,2]
[375179763,1753578667810,-151.0,0.00023022,2]
[375179764,1753578667819,-151.0,0.00023022,2]
[375179765,1753578667829,-159.14150464,0.00023022,2]
[375179766,1753578667838,-151.0,0.00023022,2]
[375179767,1753578667847,-151.0,0.00023022,2]
[375179768,1753578667856,-151.0,0.00023022,2]
[375179769,1753578667866,-151.0,0.00023022,2]
[375179770,1753578667875,-151.0,0.00023022,2]
[375179771,1753578667885,-151.0,0.00023022,2]
[375179772,1753578667895,-151.0,0.00023022,2]
[375179773,1753578667904,-151.0,0.00023022,2]
[375179774,1753578667914,-151.0,0.00023022,2]
[375179775,1753578667923,-151.0,0.00023022,2]
[375179776,1753578667933,-151.0,0.00023022,2]
[375179777,1753578667943,-151.0,0.00023022,2]
[375179778,1753578667953,-151.0,0.00023022,2]
[375179779,1753578667963,-151.0,0.00023022,2]
[375179780,1753578667973,-151.0,0.00023022,2]
[375179781,1753578667984,-151.0,0.00023022,2]
[375179782,1753578667994,-151.0,0.00023022,2]
[375179783,1753578668004,-151.0,0.00023022,2]
[375179784,1753578668014,-151.0,0.00023022,2]
[375179785,1753578668024,-151.0,0.00023022,2]
[375179786,1753578668034,-151.0,0.00023022,2]
[375179787,1753578668043,-151.0,0.00023022,2]
[375179788,1753578668053,-151.0,0.00023022,2]
[375179789,1753578668063,-151.0,0.00023022,2]
[375179790,1753578668072,-151.0,0.00023022,2]
[375179791,1753578668082,-3801.642,0.00023022,2]
[375179792,1753578668091,-151.0,0.00023022,2]
[375179793,1753578668101,-151.0,0.00023022,2]
[375179794,1753578668111,-557.88,0.00023035,2]
[375179795,1753578668120,-1059.09,0.0002307,2]
[375179796,1753578668129,-437.78817027,0.00023077,2]
[375179797,1753578668139,-1353.43,0.00023078,2]
[375179798,1753578668148,-310.77,0.00023078,2]
[375179799,1753578668158,-1539.81,0.00023078,2]
[375179800,1753578668167,-1181.02,0.00023078,2]
[375179801,1753578668177,-460.0,0.00023078,2]
[375179802,1753578668187,-490.0,0.00023078,2]
[375179803,1753578668196,-239.7,0.00023079,2]
[375179804,1753578668206,-540.67,0.00023079,2]
[375179805,1753578668216,-3688.06,0.00023079,2]
[375179806,1753578668225,-460.0,0.00023079,2]
[375179807,1753578668235,-460.0,0.00023079,2]
[375179808,1753578668244,-1423.65,0.00023079,2]
[375179809,1753578668254,-460.0,0.00023081,2]
[375179810,1753578668263,-2612.59734139,0.00023108,2]
[375179811,1753578668273,-6872.50620048,0.00023134,2]
[375179812,1753578668292,-557.88,0.00023135,5]
[375179813,1753578668304,-707.97,0.00023179,2]
[375179814,1753578668315,-779.31,0.00023179,2]
[375179815,1753578668324,-527.79,0.00023179,2]
[375179816,1753578668334,-460.0,0.00023179,2]
[375179817,1753578668344,-1538.38,0.00023179,2]
[375179818,1753578668355,-460.0,0.00023179,2]
[375179819,1753578668365,-460.0,0.0002318,2]
[375179820,1753578668375,-488.69,0.0002318,2]
[375179821,1753578668384,-460.0,0.0002318,2]
[375179822,1753578668394,-151.0,0.000232,9]
[375179823,1753578668403,-4015.85201903,0.0002321,8]
[375179824,1753578668413,-557.88,0.00023235,3]
[375179825,1753578668422,-1202.75,0.00023293,2]
[375179826,1753578668431,-2056.17,0.00023295,2]
[375179827,1753578668439,-619.47,0.00023295,2]
[375179828,1753578668449,-911.48,0.00023295,2]
[375179829,1753578668458,-765.98,0.00023295,2]
[375179830,1753578668467,-1129.56,0.00023295,2]
[375179831,1753578668476,-853.03,0.00023295,2]
[375179832,1753578668486,-874.49,0.000233,7]
[375179833,1753578668495,-2265.62,0.000233,7]
[375179834,1753578668505,-21072.81,0.000233,2]
[375179835,1753578668515,-557.92,0.00023335,3]
[375179836,1753578668526,-1059.09,0.00023344,2]
[375179837,1753578668536,-1353.43,0.00023352,2]
[375179838,1753578668546,-1539.81,0.00023352,2]
[375179839,1753578668555,-1181.02,0.00023352,2]
[375179840,1753578668566,-460.0,0.00023352,2]
[375179841,1753578668575,-490.0,0.00023352,2]
[375179842,1753578668585,-540.67,0.00023353,2]
[375179843,1753578668595,-3688.06,0.00023353,2]
[375179844,1753578668605,-460.0,0.00023353,2]
[375179845,1753578668615,-460.0,0.00023353,2]
[375179846,1753578668627,-1423.65,0.00023353,2]
[375179847,1753578668639,-460.0,0.00023355,2]
[375179848,1753578668649,-500.0,0.00023408,2]
[375179849,1753578668658,-4015.85201903,0.00023417,9]
[375179850,1753578668668,-707.97,0.00023453,2]
[375179851,1753578668679,-779.31,0.00023453,2]
[375179852,1753578668689,-465.93,0.00023453,2]
[375179853,1753578668699,-1538.38,0.00023453,2]
[375179854,1753578668710,-460.0,0.00023453,2]
[375179855,1753578668721,-460.0,0.00023454,2]
[375179856,1753578668730,-488.69,0.00023454,2]
[375179857,1753578668740,-460.0,0.00023454,2]
[375179858,1753578668750,-6872.50620048,0.00023485,2]
[375179859,1753578668760,-2096.68,0.000235,7]
[375179860,1753578668771,-1202.75,0.00023567,2]
[375179861,1753578668781,-2056.17,0.00023569,2]
[375179862,1753578668791,-619.47,0.00023569,2]
[375179863,1753578668800,-911.48,0.00023569,2]
[375179864,1753578668810,-765.98,0.00023569,2]
[375179865,1753578668821,-1129.56,0.00023569,2]
[375179866,1753578668831,-853.03,0.00023569,2]
[375179867,1753578668840,-154.287826,0.000236,3]
[375179868,1753578668850,-1059.09,0.00023618,2]
[375179869,1753578668859,-4015.85201903,0.00023624,9]
[375179870,1753578668869,-1353.43,0.00023626,2]
[375179871,1753578668879,-1539.81,0.00023626,2]
[375179872,1753578668888,-1181.02,0.00023626,2]
[375179873,1753578668898,-243.47,0.00023626,2]
[375179874,1753578668911,-490.0,0.00023626,2]
[375179875,1753578668921,-540.67,0.00023627,2]
[375179876,1753578668931,-3688.06,0.00023627,2]
[375179877,1753578668940,-460.0,0.00023627,2]
[375179878,1753578668950,-460.0,0.00023627,2]
[375179879,1753578668959,-1423.65,0.00023627,2]
[375179880,1753578668969,-549.95,0.00023629,2]
[375179881,1753578668980,-150.0,0.00023672,2]
[375179882,1753578668990,-707.97,0.00023727,2]
[375179883,1753578669000,-779.31,0.00023727,2]
[375179884,1753578669010,-1538.38,0.00023727,2]
[375179885,1753578669019,-460.0,0.00023727,2]
[375179886,1753578669029,-460.0,0.00023728,2]
[375179887,1753578669039,-488.69,0.00023728,2]
[375179888,1753578669048,-460.0,0.00023728,2]
[375179889,1753578669058,-154.287826,0.0002382,2]
[375179890,1753578669068,-151.0,0.00023831,7]
[375179891,1753578669077,-4015.85201903,0.00023831,10]
[375179892,1753578669087,-6872.50620048,0.00023836,2]
[375179893,1753578669098,-1202.75,0.00023841,2]
[375179894,1753578669108,-2056.17,0.00023843,2]
[375179895,1753578669117,-619.47,0.00023843,2]
[375179896,1753578669127,-911.48,0.00023843,2]
[375179897,1753578669137,-765.98,0.00023843,2]
[375179898,1753578669147,-1129.56,0.00023843,2]
[375179899,1753578669157,-853.03,0.00023843,2]
[375179900,1753578669291,-1059.09,0.00023892,2]
[375179901,1753578669301,-1353.43,0.00023899,2]
[375179902,1753578669311,-1539.81,0.00023899,2]
[375179903,1753578669322,-1181.02,0.00023899,2]
[375179904,1753578669331,-490.0,0.00023899,2]
[375179905,1753578669342,-540.67,0.00023901,2]
[375179906,1753578669351,-3688.06,0.00023901,2]
[375179907,1753578669361,-460.0,0.00023901,2]
[375179908,1753578669371,-460.0,0.00023901,2]
[375179909,1753578669381,-1423.65,0.00023901,2]